fUSD/lending_fUSD_20260509
["ID","MTS","AMOUNT","RATE_DAILY","PERIOD"]
[421870646,1778256004000,182.0,0.00027406,120]
[421870647,1778256006000,182.0,0.00028776,120]
[421870654,1778256203000,-587.0113327,0.00014999,2]
[421870650,1778256203000,-2731.95687031,0.000149,2]
[421870651,1778256203000,-775.31216524,0.000149,2]
[421870652,1778256203000,-7913.54086182,0.000149,2]
[421870655,1778256203000,-330.5778677,0.00014999,2]
[421870657,1778256203000,-238977.79017775,0.00015,2]
[421870653,1778256203000,-500.0,0.00014999,2]
[421870656,1778256203000,-150.0,0.00014999,2]
[421870663,1778256302000,150.0,0.00013488,2]
[421870664,1778256307000,150.0,0.00013488,2]
[421870666,1778256307000,150.0,0.00013488,2]
[421870667,1778256309000,151.08512299,0.00013488,2]
[421870669,1778256314000,151.05845012,0.00013488,2]
[421870668,1778256314000,150.0,0.00013488,2]
[421870671,1778256320000,299.02165867,0.00013488,2]
[421870672,1778256322000,150.0,0.00013488,2]
[421870673,1778256329000,184.78453712,0.00029342,120]
[421870677,1778256357000,5000.0,0.000301,120]
[421870678,1778256358000,5000.0,0.000301,120]
[421870680,1778256359000,5000.0,0.000301,120]
[421870679,1778256359000,5000.0,0.000301,120]
[421870681,1778256360000,5000.0,0.000301,120]
[421870682,1778256365000,5000.0,0.000301,120]
[421870683,1778256381000,4000.0,0.000301,120]
[421870685,1778256390000,152.0,0.00021998,30]
[421870686,1778256391000,152.0,0.00021998,30]
[421870687,1778256421000,250.0,0.00014,2]
[421870692,1778256554000,152.0,0.00022,30]
[421870691,1778256554000,152.0,0.00022,30]
[421870701,1778256631000,-507.69597815,0.000144,5]
[421870699,1778256631000,-166.66,0.00014088,2]
[421870700,1778256631000,-152.0,0.00014262,2]
[421870702,1778256631000,-692.30402185,0.000144,5]
[421870703,1778256631000,-2400.0,0.000145,5]
[421870705,1778256631000,-300.0,0.00014699,2]
[421870707,1778256631000,-1204.06,0.000147,2]
[421870706,1778256631000,-1200.0,0.00014699,2]
[421870704,1778256631000,-3600.0,0.000146,5]
[421870715,1778256632000,-3755.7713326,0.000149,2]
[421870708,1778256632000,-4800.0,0.000147,5]
[421870710,1778256632000,-180.98,0.0001483,2]
[421870713,1778256632000,-166.08452905,0.000149,2]
[421870709,1778256632000,-6000.0,0.000148,5]
[421870712,1778256632000,-6290.33331311,0.000149,2]
[421870711,1778256632000,-150.0,0.00014899,2]
[421870725,1778256632000,-516.94609672,0.00014999,2]
[421870714,1778256632000,-190.32461874,0.000149,2]
[421870724,1778256632000,-1420.54498649,0.00014999,2]
[421870718,1778256632000,-420.61258734,0.000149,2]
[421870720,1778256632000,-1376.3623715,0.000149,2]
[421870716,1778256632000,-1200.0,0.000149,5]
[421870719,1778256632000,-1821.3045802,0.000149,2]
[421870721,1778256632000,-516.87477682,0.000149,2]
[421870727,1778256632000,-357433.77985487,0.00015,2]
[421870723,1778256632000,-469.61433999,0.00014999,2]
[421870722,1778256632000,-150.0,0.00014986,2]
[421870717,1778256632000,-1825.73849924,0.000149,2]
[421870960,1778256634000,-589.05637266,0.00015,2]
[421870977,1778256638000,-152.0,0.00014262,2]
[421870978,1778256638000,-18887.77383752,0.00015,2]
[421870979,1778256638000,-1397.09997,0.00015,2]
[421871261,1778256640000,-1124.0615707,0.00015,2]
[421871568,1778256643000,-729.86496662,0.00015,2]
[421871911,1778256646000,-11010.27211053,0.00015,2]
[421871913,1778256646000,-50990.10323714,0.00015,2]
[421871909,1778256646000,-7240.50949073,0.00015,2]
[421871907,1778256646000,-161.46979243,0.00015,2]
[421871908,1778256646000,-1498.5122,0.00015,2]
[421871920,1778256720000,-152.0,0.00014264,2]
[421871921,1778256720000,-1214.20305348,0.000149,2]
[421871924,1778256720000,-151.0,0.00014997,2]
[421871923,1778256720000,-1651.4531954,0.00014996,2]
[421871922,1778256720000,-280.40839156,0.000149,2]
[421871925,1778256720000,-433550.93535956,0.00015,2]
[421871944,1778256769000,-171.8100591,0.00014999,2]
[421871926,1778256769000,-200.0,0.0001485,2]
[421871928,1778256769000,-344.58318454,0.000149,2]
[421871927,1778256769000,-2080.17592889,0.0001485,2]
[421871930,1778256769000,-6793.3795,0.000149,2]
[421871929,1778256769000,-157.45440269,0.000149,2]
[421871931,1778256769000,-1321.8462888,0.00014991,2]
[421871932,1778256769000,-5653.079762,0.00014991,2]
[421871937,1778256769000,-500.0,0.00014999,2]
[421871933,1778256769000,-150.0,0.00014999,2]
[421871935,1778256769000,-500.0,0.00014999,2]
[421871938,1778256769000,-500.0,0.00014999,2]
[421871940,1778256769000,-160.20407546,0.00014999,2]
[421871941,1778256769000,-192.15085875,0.00014999,2]
[421871939,1778256769000,-500.0,0.00014999,2]
[421871943,1778256769000,-500.0,0.00014999,2]
[421871945,1778256769000,-29861.12928014,0.00015,2]
[421871942,1778256769000,-500.0,0.00014999,2]
[421871936,1778256769000,-500.0,0.00014999,2]
[421871934,1778256769000,-414.18665963,0.00014999,2]
[421871953,1778256830000,-3940.86816612,0.000149,2]
[421871951,1778256830000,-809.46870232,0.000149,2]
[421871950,1778256830000,-963.248,0.000147,2]
[421871952,1778256830000,-186.9389277,0.000149,2]
[421871955,1778256830000,-1097.31530157,0.00014999,5]
[421871957,1778256830000,-1097.31530158,0.00014999,5]
[421871958,1778256830000,-242.58033109,0.00014999,2]
[421871956,1778256830000,-1097.31530157,0.00014999,5]
[421871959,1778256830000,-151332.25191309,0.00015,2]
[421871954,1778256830000,-232.69805496,0.000149,2]
[421871961,1778256959000,152.0,0.00030093,120]
[421871971,1778257431000,160.49,0.00013809,2]
[421871973,1778257462000,500.0,0.00013824,2]
[421871972,1778257462000,500.0,0.00013824,2]
[421871975,1778257463000,500.0,0.00013824,2]
[421871974,1778257463000,500.0,0.00013824,2]
[421871976,1778257479000,166.66,0.00013699,2]
[421871977,1778257519000,150.0,0.00013488,2]
[421871978,1778257572000,500.0,0.00013998,2]
[421871979,1778257609000,200.0,0.00013829,2]
[421871982,1778257664000,760.8,0.00013773,2]
[421871983,1778257736000,294.3725,0.00013998,2]
[421871984,1778257750000,150.0,0.00013752,2]
[421871985,1778257785000,200.0,0.00013752,2]
[421871988,1778257832000,-150.0,0.00014237,2]
[421871989,1778257832000,-500.0,0.00014302,2]
[421871987,1778257832000,-760.8,0.00014118,2]
[421871991,1778257832000,-1400.0,0.000144,5]
[421871990,1778257832000,-300.0,0.00014368,2]
[421871994,1778257832000,-1200.0,0.00014519,2]
[421871992,1778257832000,-760.8,0.00014462,2]
[421871993,1778257832000,-2800.0,0.000145,5]
[421871995,1778257832000,-300.0,0.0001452,2]
[421871996,1778257832000,-316.98020239,0.0001452,2]
[421872004,1778257832000,-72913.89348465,0.000147,2]
[421871997,1778257832000,-233.04331118,0.0001455,2]
[421872005,1778257832000,-3896.62533046,0.000147,2]
[421871998,1778257832000,-300.0,0.00014599,2]
[421871999,1778257832000,-4200.0,0.000146,5]
[421872003,1778257832000,-469.0772,0.000147,2]
[421872001,1778257832000,-150.0,0.00014699,2]
[421872002,1778257832000,-532.8248176,0.000147,2]
[421872000,1778257832000,-152.0,0.00014614,2]
[421872037,1778257838000,-177.372,0.00014799,2]
[421872032,1778257838000,-502.05177941,0.00014773,2]
[421872046,1778257838000,-289.93066174,0.00014799,2]
[421872043,1778257838000,-1071.614,0.00014799,2]
[421872039,1778257838000,-500.0,0.00014799,2]
[421872041,1778257838000,-169.80623176,0.00014799,2]
[421872030,1778257838000,-500.0,0.00014773,2]
[421872031,1778257838000,-500.0,0.00014773,2]
[421872027,1778257838000,-1585.9381255,0.00014759,2]
[421872024,1778257838000,-2100.46952614,0.00014739,2]
[421872025,1778257838000,-3686.56845892,0.00014744,2]
[421872028,1778257838000,-3686.56845892,0.00014767,2]
[421872020,1778257838000,-3686.568459,0.000147,2]
[421872026,1778257838000,-514.53140064,0.00014759,2]
[421872023,1778257838000,-3686.56845892,0.00014722,2]
[421872019,1778257838000,-2427.33524225,0.000147,2]
[421872022,1778257838000,-2100.46952615,0.00014719,2]
[421872029,1778257838000,-501.30095539,0.00014773,2]
[421872018,1778257838000,-1901.04740456,0.000147,2]
[421872017,1778257838000,-579.28593808,0.000147,2]
[421872033,1778257838000,-2100.46952614,0.00014779,2]
[421872021,1778257838000,-5700.0,0.000147,5]
[421872048,1778257838000,-500.0,0.00014799,2]
[421872050,1778257838000,-500.0,0.00014799,2]
[421872088,1778257838000,-500.0,0.00014799,2]
[421872092,1778257838000,-500.0,0.00014799,2]
[421872086,1778257838000,-500.0,0.00014799,2]
[421872084,1778257838000,-500.0,0.00014799,2]
[421872090,1778257838000,-266.17388914,0.00014799,2]
[421872080,1778257838000,-500.0,0.00014799,2]
[421872082,1778257838000,-500.0,0.00014799,2]
[421872078,1778257838000,-500.0,0.00014799,2]
[421872076,1778257838000,-500.0,0.00014799,2]
[421872035,1778257838000,-3686.56845892,0.00014789,2]
[421872074,1778257838000,-500.0,0.00014799,2]
[421872070,1778257838000,-500.0,0.00014799,2]
[421872058,1778257838000,-500.0,0.00014799,2]
[421872054,1778257838000,-500.0,0.00014799,2]
[421872060,1778257838000,-500.0,0.00014799,2]
[421872062,1778257838000,-500.0,0.00014799,2]
[421872067,1778257838000,-500.0,0.00014799,2]
[421872056,1778257838000,-500.0,0.00014799,2]
[421872052,1778257838000,-500.0,0.00014799,2]
[421872064,1778257838000,-500.0,0.00014799,2]
[421872072,1778257838000,-500.0,0.00014799,2]
[421872094,1778257839000,-301.7535339,0.00014799,2]
[421872098,1778257839000,-182.28285555,0.00014799,2]
[421872096,1778257839000,-198.2464661,0.00014799,2]
[421872327,1778257840000,-500.0,0.00014799,2]
[421872317,1778257840000,-145.59173515,0.00014799,2]
[421872304,1778257840000,-354.40826485,0.00014799,2]
[421872301,1778257840000,-45.32673515,0.00014799,2]
[421872289,1778257840000,-454.67326485,0.00014799,2]
[421872287,1778257840000,-500.0,0.00014799,2]
[421872282,1778257840000,-500.0,0.00014799,2]
[421872278,1778257840000,-500.0,0.00014799,2]
[421872284,1778257840000,-500.0,0.00014799,2]
[421872280,1778257840000,-500.0,0.00014799,2]
[421872274,1778257840000,-500.0,0.00014799,2]
[421872264,1778257840000,-500.0,0.00014799,2]
[421872272,1778257840000,-500.0,0.00014799,2]
[421872268,1778257840000,-500.0,0.00014799,2]
[421872266,1778257840000,-500.0,0.00014799,2]
[421872270,1778257840000,-500.0,0.00014799,2]
[421872261,1778257840000,-317.71714445,0.00014799,2]
[421872276,1778257840000,-500.0,0.00014799,2]
[421872319,1778257840000,-500.0,0.00014799,2]
[421872368,1778257840000,-963.76004824,0.000148,2]
[421872333,1778257840000,-500.0,0.00014799,2]
[421872341,1778257840000,-500.0,0.00014799,2]
[421872343,1778257840000,-500.0,0.00014799,2]
[421872347,1778257840000,-500.0,0.00014799,2]
[421872321,1778257840000,-500.0,0.00014799,2]
[421872359,1778257840000,-6446.96267314,0.000148,2]
[421872357,1778257840000,-1761.81728609,0.000148,2]
[421872353,1778257840000,-320.26704137,0.00014799,2]
[421872355,1778257840000,-2100.46952614,0.00014799,2]
[421872345,1778257840000,-500.0,0.00014799,2]
[421872349,1778257840000,-500.0,0.00014799,2]
[421872339,1778257840000,-500.0,0.00014799,2]
[421872337,1778257840000,-350.0,0.00014799,2]
[421872335,1778257840000,-500.0,0.00014799,2]
[421872323,1778257840000,-20.5537536,0.00014799,2]
[421872331,1778257840000,-500.0,0.00014799,2]
[421872325,1778257840000,-479.4462464,0.00014799,2]
[421872329,1778257840000,-500.0,0.00014799,2]
[421872351,1778257840000,-500.0,0.00014799,2]
[421872666,1778257843000,-1046.88928713,0.000148,2]
[421872700,1778257843000,-15991.78520337,0.000148,2]
[421872698,1778257843000,-81676.998,0.000148,2]
[421872668,1778257843000,-333.55634225,0.000148,2]
[421873062,1778257846000,-4095.81285466,0.000148,2]
[421873054,1778257846000,-1520.53532204,0.000148,2]
[421873002,1778257846000,-912.0,0.000148,2]
[421873094,1778257847000,-13973.0444684,0.000148,2]
[421873090,1778257847000,-23586.9999998,0.000148,2]
[421873092,1778257847000,-3339.91540805,0.000148,2]
[421873087,1778257847000,-1925.89296207,0.000148,2]
[421873449,1778257989000,540.86,0.00013996,2]
[421873450,1778257995000,157.34,0.00013957,2]
[421873452,1778258072000,2000.0,0.00013916,2]
[421873453,1778258223000,250.0,0.00014,2]
[421873454,1778258300000,3001.0,0.0003,120]
[421873456,1778258371000,199.6,0.00013851,2]
[421873458,1778258409000,5146.05,0.00030137,120]
[421873459,1778258418000,693.57,0.00013793,2]
[421873462,1778258439000,5146.05,0.00030137,120]
[421873463,1778258515000,2000.0,0.00022,30]
[421873465,1778258556000,251.93,0.00013776,2]
[421873467,1778258720000,150.0,0.00013488,2]
[421873468,1778258751000,200.0,0.00013833,2]
[421873469,1778258817000,270.43,0.0001382,2]
[421873470,1778258849000,152.0,0.00030098,120]
[421873471,1778258935000,5498.6,0.00013764,2]
[421873494,1778259032000,-150.0,0.00014698,2]
[421873491,1778259032000,-2721.6356355,0.00014667,2]
[421873488,1778259032000,-1418.87552823,0.00014633,2]
[421873492,1778259032000,-1071.614,0.00014698,2]
[421873493,1778259032000,-177.372,0.00014698,2]
[421873496,1778259032000,-500.0,0.00014699,2]
[421873506,1778259032000,-500.0,0.00014699,2]
[421873499,1778259032000,-500.0,0.00014699,2]
[421873502,1778259032000,-500.0,0.00014699,2]
[421873503,1778259032000,-500.0,0.00014699,2]
[421873490,1778259032000,-1418.87552823,0.00014667,2]
[421873508,1778259032000,-500.0,0.00014699,2]
[421873509,1778259032000,-500.0,0.00014699,2]
[421873498,1778259032000,-500.0,0.00014699,2]
[421873489,1778259032000,-2721.6356355,0.00014633,2]
[421873484,1778259032000,-4182.5852942,0.000146,2]
[421873486,1778259032000,-302.80108974,0.000146,5]
[421873472,1778259032000,-693.57,0.00014138,2]
[421873473,1778259032000,-166.15,0.0001419,2]
[421873474,1778259032000,-153.89665123,0.00014383,2]
[421873477,1778259032000,-1400.0,0.000145,5]
[421873475,1778259032000,-700.0,0.000144,5]
[421873478,1778259032000,-2080.17592889,0.00014569,2]
[421873487,1778259032000,-573.89326141,0.000146,5]
[421873476,1778259032000,-693.57,0.00014483,2]
[421873480,1778259032000,-1200.0,0.00014599,2]
[421873483,1778259032000,-2572.90905695,0.000146,2]
[421873482,1778259032000,-148.72657861,0.000146,2]
[421873510,1778259032000,-500.0,0.00014699,2]
[421873481,1778259032000,-1418.87552827,0.000146,2]
[421873485,1778259032000,-1223.30564885,0.000146,5]
[421873479,1778259032000,-300.0,0.00014599,2]
[421873512,1778259032000,-500.0,0.00014699,2]
[421873497,1778259032000,-500.0,0.00014699,2]
[421873507,1778259032000,-500.0,0.00014699,2]
[421873551,1778259032000,-500.0,0.00014699,2]
[421873548,1778259032000,-500.0,0.00014699,2]
[421873550,1778259032000,-289.93066174,0.00014699,2]
[421873552,1778259032000,-500.0,0.00014699,2]
[421873553,1778259032000,-500.0,0.00014699,2]
[421873554,1778259032000,-150.0,0.00014699,2]
[421873544,1778259032000,-500.0,0.00014699,2]
[421873549,1778259032000,-169.80623176,0.00014699,2]
[421873558,1778259032000,-500.0,0.00014699,2]
[421873560,1778259032000,-513.79744774,0.00014699,2]
[421873557,1778259032000,-500.0,0.00014699,2]
[421873511,1778259032000,-500.0,0.00014699,2]
[421873556,1778259032000,-500.0,0.00014699,2]
[421873561,1778259032000,-30537.8562874,0.000147,2]
[421873555,1778259032000,-500.0,0.00014699,2]
[421873547,1778259032000,-574.18692896,0.00014699,2]
[421873559,1778259032000,-500.0,0.00014699,2]
[421873546,1778259032000,-300.0,0.00014699,2]
[421873545,1778259032000,-500.0,0.00014699,2]
[421873513,1778259032000,-500.0,0.00014699,2]
[421873515,1778259032000,-500.0,0.00014699,2]
[421873517,1778259032000,-500.0,0.00014699,2]
[421873514,1778259032000,-500.0,0.00014699,2]
[421873520,1778259032000,-500.0,0.00014699,2]
[421873523,1778259032000,-500.0,0.00014699,2]
[421873528,1778259032000,-500.0,0.00014699,2]
[421873495,1778259032000,-500.0,0.00014699,2]
[421873531,1778259032000,-500.0,0.00014699,2]
[421873538,1778259032000,-500.0,0.00014699,2]
[421873540,1778259032000,-278.77591735,0.00014699,2]
[421873542,1778259032000,-500.0,0.00014699,2]
[421873534,1778259032000,-500.0,0.00014699,2]
[421873536,1778259032000,-500.0,0.00014699,2]
[421873543,1778259032000,-500.0,0.00014699,2]
[421873569,1778259038000,-99769.5265578,0.000147,2]
[421873570,1778259039000,-2233.04697724,0.000147,2]
[421873573,1778259041000,-909.72419414,0.000147,2]
[421873577,1778259043000,-2530.27777926,0.000147,2]
[421873579,1778259043000,-380.52932165,0.000147,2]
[421873578,1778259043000,-26491.54762082,0.000147,2]
[421873583,1778259044000,-343.208083,0.000147,2]
[421873589,1778259046000,-62556.31149906,0.000147,2]
[421873588,1778259046000,-2268.21441649,0.000147,2]
[421873587,1778259046000,-9591.03366314,0.000147,2]
[421873590,1778259046000,-41740.21995009,0.000147,2]
[421873593,1778259086000,155.7,0.00013942,2]
[421873594,1778259098000,175.41,0.00013699,2]
[421873595,1778259124000,2000.0,0.00013894,2]
[421873597,1778259225000,4495.2,0.00013811,2]
[421873598,1778259235000,163.45,0.00013793,2]
[421873599,1778259298000,150.0,0.00013793,2]
[421873600,1778259348000,277.42,0.00013761,2]
[421873602,1778259417000,5204.55,0.00013738,2]
[421873603,1778259574000,200.0,0.00013705,2]
[421873604,1778259661000,3626.589134,0.00013999,2]
[421873605,1778259686000,10000.0,0.00030137,120]
[421873606,1778259704000,1828.0,0.00030137,120]
[421873607,1778259735000,250.0,0.000125,2]
[421873610,1778259813000,259.08,0.00013705,2]
[421873613,1778259859000,157.34,0.00013723,2]
[421873614,1778259949000,2000.0,0.00013732,2]
[421873615,1778259978000,200.0,0.00013732,2]
[421873616,1778259998000,2291.03,0.00013608,2]
[421873617,1778260025000,250.0,0.00014,2]
[421873618,1778260034000,199.6,0.00013708,2]
[421873621,1778260183000,7630.36,0.00013608,2]
[421873658,1778260233000,-30889.91253687,0.000146,2]
[421873639,1778260233000,-500.0,0.00014599,2]
[421873640,1778260233000,-500.0,0.00014599,2]
[421873634,1778260233000,-2579.21346286,0.00014544,2]
[421873637,1778260233000,-222.04538854,0.00014589,2]
[421873635,1778260233000,-150.0,0.00014588,2]
[421873632,1778260233000,-539.89309409,0.00014533,2]
[421873629,1778260233000,-1200.0,0.00014499,2]
[421873641,1778260233000,-309.78454867,0.00014599,2]
[421873631,1778260233000,-1300.0,0.000145,5]
[421873628,1778260233000,-300.0,0.00014499,2]
[421873627,1778260233000,-300.0,0.00014499,2]
[421873625,1778260233000,-600.0,0.000144,5]
[421873626,1778260233000,-277.42,0.00014449,2]
[421873623,1778260233000,-250.0,0.00014191,2]
[421873624,1778260233000,-300.0,0.00014277,2]
[421873661,1778260233000,-479.0,0.000146,2]
[421873630,1778260233000,-2579.21346293,0.000145,2]
[421873636,1778260233000,-2579.21346286,0.00014589,2]
[421873622,1778260233000,-277.42,0.00014105,2]
[421873638,1778260233000,-500.0,0.00014599,2]
[421873660,1778260233000,-5025.40585793,0.000146,2]
[421873659,1778260233000,-229055.77477771,0.000146,2]
[421873657,1778260233000,-150.0,0.000146,2]
[421873653,1778260233000,-567.12548231,0.00014599,2]
[421873652,1778260233000,-500.0,0.00014599,2]
[421873654,1778260233000,-500.0,0.00014599,2]
[421873656,1778260233000,-1075.0,0.000146,5]
[421873633,1778260233000,-671.05878005,0.00014535,2]
[421873655,1778260233000,-557.17074173,0.00014599,2]
[421873650,1778260233000,-500.0,0.00014599,2]
[421873649,1778260233000,-500.0,0.00014599,2]
[421873648,1778260233000,-500.0,0.00014599,2]
[421873646,1778260233000,-193.96700313,0.00014599,2]
[421873647,1778260233000,-857.291,0.00014599,2]
[421873645,1778260233000,-306.03299687,0.00014599,2]
[421873644,1778260233000,-190.21545133,0.00014599,2]
[421873651,1778260233000,-504.32709626,0.00014599,2]
[421873669,1778260237000,-1013.0,0.00014499,2]
[421873672,1778260237000,-380.52932165,0.000146,2]
[421873670,1778260237000,-25859.0769,0.00014499,2]
[421873671,1778260237000,-632.47072082,0.000146,2]
[421873673,1778260238000,-8393.22571905,0.000146,2]
[421873721,1778260240000,-151.0,0.00014689,2]
[421873733,1778260240000,-151.0,0.00014722,2]
[421873723,1778260240000,-151.0,0.00014689,2]
[421873725,1778260240000,-151.0,0.00014689,2]
[421873724,1778260240000,-151.0,0.00014689,2]
[421873731,1778260240000,-2700.0,0.000147,5]
[421873727,1778260240000,-151.0,0.00014697,2]
[421873729,1778260240000,-221.59415934,0.000147,2]
[421873730,1778260240000,-353.51446558,0.000147,2]
[421873728,1778260240000,-500.0,0.00014699,2]
[421873732,1778260240000,-151.0,0.00014722,2]
[421873722,1778260240000,-151.0,0.00014689,2]
[421873726,1778260240000,-1121.2913523,0.00014689,2]
[421873712,1778260240000,-2579.21346286,0.00014678,2]
[421873719,1778260240000,-151.0,0.00014689,2]
[421873707,1778260240000,-2000.0,0.000146,5]
[421873711,1778260240000,-502.05177941,0.00014673,2]
[421873720,1778260240000,-151.0,0.00014689,2]
[421873710,1778260240000,-164.30836733,0.00014673,2]
[421873713,1778260240000,-82142.0728158,0.00014689,2]
[421873717,1778260240000,-151.0,0.00014689,2]
[421873714,1778260240000,-56458.2479486,0.00014689,2]
[421873716,1778260240000,-151.0,0.00014689,2]
[421873709,1778260240000,-501.30095539,0.00014673,2]
[421873708,1778260240000,-2579.21346286,0.00014633,2]
[421873718,1778260240000,-151.0,0.00014689,2]
[421873705,1778260240000,-3875.22104318,0.000146,2]
[421873706,1778260240000,-1002069.4271953,0.000146,2]
[421873735,1778260240000,-1390.97798026,0.00014767,2]
[421873715,1778260240000,-151.0,0.00014689,2]
[421873734,1778260240000,-2579.21346286,0.00014722,2]
[421873751,1778260240000,-1390.97798026,0.00014811,2]
[421873737,1778260240000,-500.0,0.00014773,2]
[421873763,1778260240000,-186.9389277,0.000149,2]
[421873764,1778260240000,-617.37820566,0.000149,2]
[421873766,1778260240000,-155.0,0.00014999,2]
[421873768,1778260240000,-934482.33453172,0.00015,2]
[421873765,1778260240000,-151.0,0.00014997,2]
[421873767,1778260240000,-163.0,0.00015,2]
[421873761,1778260240000,-2579.21346286,0.000149,2]
[421873760,1778260240000,-600.0,0.000149,5]
[421873762,1778260240000,-539.64580154,0.000149,2]
[421873758,1778260240000,-223.04056798,0.000149,2]
[421873759,1778260240000,-1390.97798026,0.000149,2]
[421873749,1778260240000,-3400.0,0.000148,5]
[421873745,1778260240000,-151.0,0.000148,2]
[421873752,1778260240000,-2579.21346286,0.00014811,2]
[421873753,1778260240000,-12778.607895,0.00014819,2]
[421873756,1778260240000,-500.0,0.00014873,2]
[421873736,1778260240000,-2579.21346286,0.00014767,2]
[421873738,1778260240000,-500.0,0.00014773,2]
[421873739,1778260240000,-500.0,0.00014773,2]
[421873740,1778260240000,-500.0,0.00014773,2]
[421873742,1778260240000,-151.0,0.00014797,2]
[421873754,1778260240000,-1390.97798026,0.00014856,2]
[421873741,1778260240000,-277.42,0.00014793,2]
[421873743,1778260240000,-329.1492002,0.000148,2]
[421873747,1778260240000,-151.0,0.000148,2]
[421873746,1778260240000,-151.0,0.000148,2]
[421873757,1778260240000,-5137.0136524,0.00014887,2]
[421873748,1778260240000,-151.0,0.000148,2]
[421873750,1778260240000,-150.0,0.00014811,2]
[421873744,1778260240000,-984.2618683,0.000148,2]
[421873755,1778260240000,-2579.21346286,0.00014856,2]
[421873789,1778260242000,-6405.64218561,0.00015,2]
[421873788,1778260242000,-1503.48741385,0.00015,2]
[421873790,1778260243000,-9045.99999988,0.00015,2]
[421873803,1778260261000,152.0,0.00013852,2]
[421873804,1778260322000,400.0,0.000138,5]
[421873805,1778260324000,800.0,0.000139,5]
[421873806,1778260325000,156.12,7.934e-05,2]
[421873807,1778260351000,152.0,0.00013849,2]
[421873812,1778260408000,147451.43126602,0.00030136,120]
[421873813,1778260462000,184.96,0.00013917,2]
[421873814,1778260475000,201.53010334,0.0001399,2]
[421873820,1778260629000,152.0,0.00013959,2]
[421873821,1778260654000,152.0,0.00013962,2]
[421873822,1778260726000,2000.0,0.00013617,2]
[421873830,1778261024000,-5000.0,0.00014399,2]
[421873833,1778261024000,-2262.27901818,0.000144,2]
[421873829,1778261024000,-300.0,0.00014398,2]
[421873831,1778261024000,-1200.0,0.00014399,2]
[421873834,1778261024000,-3914.9101386,0.000144,2]
[421873832,1778261024000,-300.0,0.00014399,2]
[421873835,1778261025000,-3011.96139611,0.000144,2]
[421873836,1778261025000,-2262.2790181,0.00014456,2]
[421873837,1778261025000,-2643.57042901,0.00014456,2]
[421873845,1778261029000,-403.7606709,0.00014498,2]
[421873838,1778261029000,-608.57949976,0.000144,2]
[421873839,1778261029000,-368.39096703,0.00014456,2]
[421873840,1778261029000,-151.0,0.00014496,2]
[421873842,1778261029000,-2291.03,0.00014497,2]
[421873841,1778261029000,-150.0,0.00014497,2]
[421873843,1778261029000,-150.0,0.00014498,2]
[421873844,1778261029000,-500.0,0.00014498,2]
[421873848,1778261029000,-500.0,0.00014498,2]
[421873846,1778261029000,-233.09516983,0.00014498,2]
[421873855,1778261029000,-500.0,0.00014498,2]
[421873853,1778261029000,-500.0,0.00014498,2]
[421873851,1778261029000,-500.0,0.00014498,2]
[421873854,1778261029000,-500.0,0.00014498,2]
[421873850,1778261029000,-500.0,0.00014498,2]
[421873852,1778261029000,-500.0,0.00014498,2]